bitfinex/quotes_SOLUSD_20240705
["timestamp","ask_amount","ask_price","bid_price","bid_amount"]
[1720138563981,7.8802,126.9,126.82,12.5055]
[1720138564169,178.36,126.96,126.86,7.8826]
[1720138564170,7.8783,126.94,126.86,7.8826]
[1720138564371,7.8783,126.94,126.83,3.52055213]
[1720138564372,100.0,126.95,126.83,3.52055213]
[1720138564596,100.0,126.93,126.82,12.5055]
[1720138564778,7.8829,126.86,126.79,51.2446]
[1720138565100,7.8821,126.87,126.79,19.7171]
[1720138565399,19.6997,126.91,126.79,19.7171]
[1720138565603,119.6997,126.91,126.76,59.8042]
[1720138565768,39.18,126.92,126.81,47.55]
[1720138565970,39.18,126.96,126.81,47.55]
[1720138566197,100.0,127.0,126.81,47.55]
[1720138566502,190.8205,127.02,126.87,67.2547]
[1720138566694,100.0,127.05,126.89,47.55]
[1720138566894,7.8715,127.04,126.96,7.8759]
[1720138567097,7.8715,127.04,126.95,19.6913]
[1720138567098,7.8728,127.02,126.95,19.6913]
[1720138567325,7.8726,127.03,126.95,27.5678]
[1720138567471,100.0,127.06,126.92,47.55]
[1720138567680,100.0,127.06,126.95,7.8766]
[1720138567973,39.18,127.07,126.94,67.2432]
[1720138568176,0.1,127.09,126.96,47.55]
[1720138568383,0.1,127.09,126.98,19.6866]
[1720138568572,0.1,127.09,127.0,19.6839]
[1720138568877,0.1,127.09,127.02,19.6808]
[1720138569399,0.1,127.09,127.03,7.872]
[1720138569609,0.1,127.09,126.99,13.1634]
[1720138569610,0.1,127.09,127.05,19.6759]
[1720138569779,0.1,127.09,126.99,13.1634]
[1720138569985,0.1,127.09,127.05,7.8707]
[1720138570186,0.1,127.09,127.02,19.6818]
[1720138570382,0.1,127.09,127.05,7.8708]
[1720138570909,0.1,127.09,127.07,47.55]
[1720138571083,0.1,127.19,127.11,19.6669]
[1720138571275,0.1,127.19,127.08,45.0]
[1720138571480,0.1,127.19,127.15,7.8641]
[1720138571783,0.1,127.19,127.12,7.866]
[1720138571980,7.9623,127.19,127.11,27.5341]
[1720138572179,0.1,127.19,127.08,64.6725]
[1720138572610,7.8629,127.18,127.1,7.8678]
[1720138572800,7.9623,127.19,127.11,7.8671]
[1720138572996,7.8648,127.15,127.08,64.6725]
[1720138573305,0.1,127.19,127.06,7.8702]
[1720138573614,7.8685,127.09,127.02,7.8721]
[1720138573793,100.0,127.1,126.98,19.688]
[1720138573990,45.0,127.09,126.98,19.688]
[1720138574305,7.8703,127.06,126.98,7.8751]
[1720138574500,100.0,127.08,126.95,19.6923]
[1720138574702,100.0,127.06,126.91,19.6975]
[1720138574883,100.0,127.02,126.88,19.7033]
[1720138575083,7.8766,126.96,126.88,75.1345]
[1720138575400,100.0,127.02,126.9,67.2492]
[1720138575591,7.8771,126.95,126.89,3.51888744]
[1720138575793,100.0,127.05,126.89,3.51888744]
[1720138575985,100.0,127.0,126.89,3.51888744]
[1720138576186,100.0,127.0,126.87,27.5861]
[1720138576382,7.8765,126.96,126.86,12.7419]
[1720138576685,33.2957,127.04,126.92,7.8786]
[1720138576884,45.0,127.03,126.91,19.6985]
[1720138577098,7.8725,127.03,126.95,7.8765]
[1720138577304,7.8713,127.05,126.97,7.8758]
[1720138577588,100.0,127.07,126.95,19.6917]
[1720138577784,58.8537,127.08,126.95,19.6917]
[1720138577991,7.8735,127.01,126.93,7.8777]
[1720138578199,7.8746,126.99,126.92,23.21535568]
[1720138578388,7.8752,126.98,126.92,3.51805568]
[1720138578600,19.6833,127.02,126.92,3.51805568]
[1720138578809,19.6774,127.05,126.92,7.8786]
[1720138579123,7.8729,127.02,126.94,7.8776]
[1720138579302,7.8716,127.04,126.96,7.8764]
[1720138579493,139.18,127.08,126.97,19.6885]
[1720138579712,7.8678,127.1,127.02,7.8727]
[1720138580015,119.6692,127.11,126.97,11.39187029]
[1720138580314,7.8685,127.09,127.01,7.8733]
[1720138580515,39.18,127.14,126.98,47.55]
[1720138580697,39.18,127.14,127.03,19.6793]
[1720138580892,52.69,127.18,127.03,67.2293]
[1720138581091,0.1,127.19,127.06,47.55]
[1720138581303,0.1,127.19,127.07,39.3474]
[1720138581619,7.8635,127.17,127.09,19.6706]
[1720138581797,7.8629,127.18,127.1,7.8672]
[1720138581996,7.8629,127.18,127.09,19.6706]
[1720138582210,7.8637,127.17,127.09,27.5385]
[1720138582422,100.0,127.18,127.06,19.6755]
[1720138582716,7.8666,127.12,127.04,11.38613258]
[1720138582887,7.8671,127.12,127.04,11.38593258]
[1720138583091,7.8685,127.09,127.04,3.51473258]
[1720138583292,119.6644,127.14,127.02,19.6811]
[1720138583516,39.18,127.12,126.95,39.3851]
[1720138583710,39.18,127.12,127.0,3.51583958]
[1720138583909,39.18,127.12,127.06,7.8701]
[1720138584218,39.18,127.12,127.04,7.8714]
[1720138584219,7.8667,127.12,127.04,7.8714]
[1720138584417,7.8648,127.15,127.07,7.8695]
[1720138584719,7.8652,127.15,127.07,27.5429]
[1720138585020,7.8647,127.15,127.07,27.5429]
[1720138585206,0.1,127.19,127.09,7.8681]
[1720138585514,7.8653,127.14,127.07,19.6734]
[1720138585720,7.8684,127.1,127.0,3.51583958]
[1720138585923,39.3177,127.17,127.0,3.51583958]
[1720138585924,7.8703,127.06,127.0,3.51583958]
[1720138586092,139.18,127.13,126.99,13.2641]
[1720138586288,7.869,127.08,126.99,13.2641]
[1720138586507,7.8692,127.08,127.0,7.874]
[1720138586710,119.671,127.1,126.99,13.2641]
[1720138587014,119.6734,127.08,126.95,7.8765]
[1720138587191,119.6734,127.08,126.94,44.6931]
[1720138587192,7.874,127.0,126.94,44.6931]
[1720138587394,7.8741,127.0,126.94,13.2949]
[1720138587708,119.6799,127.04,126.94,13.2949]
[1720138587913,7.8738,127.01,126.94,13.2949]
[1720138588101,139.18,127.06,126.95,19.6919]
[1720138588305,39.18,127.08,126.97,19.6889]
[1720138588902,7.8691,127.08,127.01,7.8733]
[1720138589106,119.6673,127.12,126.99,19.6858]
[1720138589391,7.8698,127.07,126.99,19.6858]
[1720138589919,19.6673,127.12,126.99,67.2358]
[1720138590101,7.8684,127.09,127.02,7.8726]
[1720138590295,119.6673,127.12,126.99,47.55]
[1720138590498,39.18,127.14,126.97,3.51667029]
[1720138590499,7.8731,127.02,126.97,3.51667029]
[1720138590714,100.0,127.06,126.97,3.51667029]
[1720138591017,7.8746,126.99,126.97,3.51667029]
[1720138591201,19.683,127.02,126.97,3.51667029]
[1720138591401,7.8752,126.98,126.97,3.51667029]
[1720138591594,58.8564,127.06,126.97,3.51667029]
[1720138591794,145.0,127.05,126.97,3.51667029]
[1720138592027,39.18,127.06,126.97,7.8753]
[1720138592220,7.8699,127.07,127.0,7.8735]
[1720138592395,39.18,127.1,127.0,7.8739]
[1720138592599,19.6716,127.09,126.98,19.687]
[1720138592791,100.0,127.08,126.95,27.5685]
[1720138592996,100.0,127.04,126.92,7.8785]
[1720138593300,100.0,127.04,126.92,7.8786]
[1720138593504,7.8735,127.01,126.93,7.8779]
[1720138593721,7.8754,126.98,126.91,7.8789]
[1720138593934,19.6825,127.02,126.89,33.024]
[1720138594225,7.8729,127.02,126.94,7.8772]
[1720138594529,7.8707,127.06,126.98,7.8749]
[1720138594842,7.8709,127.05,126.98,7.875]
[1720138595140,7.8745,127.0,126.92,7.8788]
[1720138595303,119.6785,127.05,126.93,19.6946]
[1720138595513,119.6808,127.03,126.9,19.6995]
[1720138595825,39.18,127.04,126.9,19.6995]
[1720138595826,7.8765,126.96,126.9,19.6995]
[1720138596150,119.6843,127.01,126.89,13.3227]
[1720138596151,19.6872,126.99,126.91,1.47581966]
[1720138596455,100.0,126.97,126.83,12.7264]
[1720138596658,100.0,126.97,126.81,51.2954]
[1720138596659,7.8821,126.87,126.81,31.5815]
[1720138596821,7.8816,126.88,126.81,0.1]
[1720138597026,100.0,126.92,126.81,0.1]
[1720138597329,7.8828,126.86,126.81,0.1]
[1720138597537,100.0,126.89,126.81,0.1]
[1720138597724,19.7045,126.88,126.81,0.1]
[1720138597919,7.8851,126.83,126.81,0.1]
[1720138598118,39.18,126.86,126.81,0.1]
[1720138598429,12.7264,126.87,126.81,0.1]
[1720138598951,7.8844,126.84,126.81,0.1]
[1720138599626,145.0,126.86,126.81,0.1]
[1720138599827,7.8851,126.82,126.81,0.1]
[1720138600030,7.8845,126.84,126.81,0.1]
[1720138600228,7.8851,126.82,126.81,0.1]
[1720138600646,107.8851,126.82,126.81,0.1]
[1720138600862,152.8851,126.82,126.81,0.1]
[1720138601229,7.8879,126.78,126.71,0.1]
[1720138601537,39.18,126.85,126.73,7.8902]
[1720138601738,7.8858,126.81,126.73,7.8902]
[1720138601940,7.8858,126.81,126.74,7.8899]
[1720138602247,7.8852,126.82,126.74,27.6151]
[1720138602455,45.0,126.84,126.74,19.7251]
[1720138602618,39.18,126.85,126.75,7.8893]
[1720138602821,7.8846,126.83,126.76,7.8887]
[1720138603021,100.0,126.86,126.75,7.8894]
[1720138603238,100.0,126.83,126.72,0.13613521]
[1720138603422,45.0,126.85,126.72,0.13613521]
[1720138603423,7.8894,126.76,126.72,0.13613521]
[1720138603646,7.8877,126.78,126.72,0.13613521]
[1720138604047,7.8871,126.79,126.72,0.13613521]
[1720138604356,7.8871,126.79,126.72,8.02723521]
[1720138604556,39.18,126.82,126.72,0.13613521]
[1720138604865,7.8884,126.77,126.72,0.13613521]
[1720138605067,7.8877,126.78,126.72,0.13613521]
[1720138605252,139.18,126.84,126.72,0.13613521]
[1720138605439,19.7092,126.85,126.74,7.8899]
[1720138605642,19.7092,126.85,126.72,19.86373521]
[1720138605864,39.18,126.86,126.73,3.52333013]
[1720138606069,12.7264,126.87,126.76,27.61]
[1720138606070,7.884,126.84,126.76,27.61]
[1720138606267,12.7264,126.87,126.73,3.52333013]
[1720138606469,19.7097,126.85,126.73,3.52333013]
[1720138606774,19.7076,126.86,126.74,7.8901]
[1720138606950,12.7264,126.87,126.77,19.7201]
[1720138607260,7.8846,126.83,126.75,7.8889]
[1720138607461,7.8852,126.82,126.75,7.8889]
[1720138607662,19.7088,126.85,126.74,7.89]
[1720138607872,12.7264,126.87,126.73,3.52333013]
[1720138607873,100.0,126.86,126.73,3.52333013]
[1720138608169,12.7264,126.87,126.76,19.7216]
[1720138608678,12.7264,126.87,126.76,67.2716]
[1720138608859,19.7028,126.89,126.78,19.7183]
[1720138609173,19.7028,126.89,126.76,55.4388]
[1720138609480,198.67595507,126.9,126.78,7.8873]
[1720138609675,7.884,126.84,126.77,27.6081]
[1720138609879,70.768194,126.9,126.79,67.2664]
[1720138610052,7.8812,126.89,126.82,7.8851]
[1720138610365,139.18,126.92,126.79,7.8865]
[1720138610585,7.8825,126.87,126.8,7.8864]
[1720138610749,7.8815,126.88,126.81,7.8857]
[1720138611158,7.8822,126.87,126.78,13.1442]
[1720138611453,19.6995,126.91,126.8,7.886]
[1720138611674,139.18,126.92,126.78,59.408]
[1720138611675,7.8805,126.9,126.78,59.408]
[1720138611969,39.18,126.92,126.78,59.408]
[1720138612153,7.8819,126.88,126.8,7.8862]
[1720138612359,119.7013,126.9,126.78,11.858]
[1720138612571,7.884,126.84,126.78,11.858]
[1720138612777,7.8833,126.86,126.78,19.7455]
[1720138612948,7.8822,126.87,126.79,19.7166]
[1720138613285,7.8791,126.92,126.85,7.8832]
[1720138613585,7.8797,126.91,126.84,19.709]
[1720138613747,31.57582,126.94,126.81,19.7136]
[1720138613953,7.8809,126.89,126.82,7.8848]
[1720138614349,31.57582,126.94,126.85,7.883]
[1720138614350,7.8794,126.92,126.85,7.883]
[1720138616151,7.8778,126.94,126.85,19.7071]
[1720138616349,7.8794,126.92,126.85,19.7071]
[1720138616556,7.88,126.91,126.84,7.8837]
[1720138616779,19.6951,126.94,126.82,19.7119]
[1720138616981,100.0,126.95,126.79,19.7175]
[1720138616982,139.18,126.92,126.79,19.7175]
[1720138617154,139.18,126.92,126.78,11.858]
[1720138617155,100.0,126.9,126.78,11.858]
[1720138617343,19.7056,126.87,126.78,11.858]
[1720138617548,7.8844,126.84,126.78,11.858]
[1720138617773,7.8834,126.85,126.78,19.7454]
[1720138618077,45.0,126.89,126.78,59.408]
[1720138618078,7.8809,126.89,126.78,59.408]
[1720138618251,7.8809,126.89,126.82,7.8847]
[1720138618449,19.6996,126.91,126.78,59.408]
[1720138618969,19.6996,126.91,126.81,27.5992]
[1720138619174,119.6996,126.91,126.81,19.714]
[1720138619375,7.8821,126.87,126.8,7.8863]
[1720138619553,7.8827,126.86,126.79,7.8869]
[1720138619952,119.703,126.89,126.78,19.718]
[1720138620251,58.8786,126.92,126.8,19.7155]
[1720138620471,119.6932,126.95,126.83,19.7113]
[1720138620677,100.0,126.91,126.74,31.5775]
[1720138620854,7.8831,126.86,126.79,7.8864]
[1720138621175,7.8839,126.84,126.77,27.6083]
[1720138621364,119.7026,126.89,126.77,19.7202]
[1720138621365,19.7056,126.87,126.77,19.7202]
[1720138621560,39.18,126.89,126.79,19.717]
[1720138621771,108.2006823,126.95,126.75,3.52277418]
[1720138621975,7.8779,126.94,126.87,7.8815]
[1720138622181,7.8779,126.94,126.83,47.55]
[1720138622182,7.879,126.92,126.83,47.55]
[1720138622365,7.8787,126.93,126.84,67.2588]
[1720138622578,7.8779,126.94,126.87,7.882]
[1720138622793,31.9043,127.0,126.86,47.55]
[1720138623083,7.877,126.96,126.88,7.8813]
[1720138623251,111.5729,127.02,126.92,7.8785]
[1720138623252,39.437225,126.99,126.92,7.8785]
[1720138623454,31.562625,126.99,126.93,19.6946]
[1720138623659,119.6746,127.07,126.93,47.55]
[1720138623889,119.6746,127.07,126.95,19.6918]
[1720138623890,7.8728,127.02,126.95,19.6918]
[1720138624190,31.549046,127.05,126.93,47.55]
[1720138624349,69.2555,127.08,126.98,19.6873]
[1720138624556,7.8722,127.03,126.9,47.55]
[1720138624863,31.543316,127.07,126.92,47.55]
[1720138625056,31.543316,127.07,126.96,47.55]
[1720138625057,7.8701,127.07,126.96,47.55]
[1720138625260,7.8705,127.06,126.98,7.8747]
[1720138625484,7.871,127.05,126.96,19.6897]
[1720138625663,7.8703,127.06,126.98,7.8746]
[1720138625866,19.7721,127.09,126.96,19.6897]
[1720138626150,7.8703,127.06,126.98,7.8751]
[1720138626353,7.8695,127.08,126.98,19.6871]
[1720138626554,0.1,127.09,127.0,7.8734]
[1720138626770,7.869,127.08,127.0,19.6839]
[1720138627099,0.1,127.09,127.03,7.8716]
[1720138627254,0.1,127.09,127.02,19.6806]
[1720138627457,0.1,127.09,127.02,67.2306]
[1720138627684,0.1,127.09,127.07,7.8691]
[1720138627984,0.1,127.09,127.06,19.6748]
[1720138628660,0.1,127.09,127.08,7.869]
[1720138628855,7.8635,127.17,127.08,67.2213]
[1720138629191,19.7567,127.19,127.07,47.55]
[1720138629479,0.1,127.19,127.1,19.6692]
[1720138629684,0.1,127.19,127.12,19.6655]
[1720138629858,0.1,127.19,127.02,12.0617]
[1720138630054,0.1,127.19,127.04,47.55]
[1720138630252,0.1,127.19,127.06,47.55]
[1720138630477,0.1,127.19,127.11,47.55]
[1720138630676,0.1,127.19,127.14,7.8652]
[1720138630988,0.1,127.19,127.13,19.6635]
[1720138631152,0.1,127.19,127.13,67.2135]
[1720138631353,0.1,127.19,127.13,75.0794]
[1720138631858,0.1,127.19,127.13,67.2135]
[1720138632080,7.8637,127.17,127.1,19.6688]
[1720138632251,7.8666,127.12,127.07,3.51390279]
[1720138632456,39.18,127.18,127.07,3.51390279]
[1720138632864,0.1,127.19,127.07,42.86190279]
[1720138633198,0.1,127.19,127.16,19.6591]
[1720138633360,0.1,127.19,127.16,67.2091]
[1720138633560,0.1,127.19,127.18,7.8628]
[1720138633758,7.9564,127.29,127.21,7.8608]
[1720138633960,0.1,127.29,127.22,7.8602]
[1720138634188,7.9565,127.29,127.21,7.8609]
[1720138634390,0.1,127.29,127.21,47.55]
[1720138634690,0.1,127.29,127.2,67.2032]
[1720138635070,0.1,127.29,127.21,47.55]
[1720138635282,0.1,127.29,127.22,47.55]
[1720138635488,0.1,127.29,127.28,7.8566]
[1720138635987,7.9505,127.39,127.31,7.8544]
[1720138636169,7.9505,127.39,127.32,47.55]
[1720138636170,0.1,127.39,127.32,47.55]
[1720138636375,0.1,127.39,127.33,7.8531]
[1720138636560,7.8519,127.36,127.28,7.8566]
[1720138636763,0.1,127.39,127.28,19.6413]
[1720138636965,0.1,127.39,127.27,12.6584]
[1720138637301,0.1,127.39,127.28,39.2828]
[1720138637502,0.1,127.39,127.25,32.9942]
[1720138637675,0.1,127.39,127.22,32.8533]
[1720138637676,7.8554,127.31,127.22,32.8533]
[1720138638010,19.6306,127.36,127.16,13.2027]
[1720138638011,100.0,127.3,127.16,13.2027]
[1720138638298,78.36,127.32,127.16,13.2027]
[1720138638464,7.8563,127.29,127.2,7.8613]
[1720138638665,13.1444,127.35,127.22,47.55]
[1720138638884,7.8554,127.31,127.16,28.2027]
[1720138639088,7.856,127.29,127.22,19.6508]
[1720138639298,45.0,127.34,127.22,19.6508]
[1720138639466,7.8518,127.36,127.28,7.8566]
[1720138639668,7.8507,127.38,127.3,7.8553]
[1720138639998,19.6187,127.43,127.32,47.55]
[1720138640287,19.6187,127.43,127.24,44.1754]
[1720138640288,39.243,127.42,127.24,44.1754]
[1720138640461,31.459918,127.41,127.31,7.8544]
[1720138640664,31.459918,127.41,127.3,19.6375]
[1720138640665,19.6201,127.43,127.3,67.1875]
[1720138640866,7.9505,127.39,127.3,67.1875]
[1720138641084,0.1,127.39,127.33,47.55]
[1720138641695,0.1,127.39,127.33,55.4034]
[1720138641887,0.1,127.39,127.24,59.1754]
[1720138642198,0.1,127.39,127.32,19.6347]
[1720138642379,0.1,127.39,127.25,20.0]
[1720138642380,0.1,127.39,127.37,7.8509]
[1720138642585,0.1,127.39,127.29,39.28]
[1720138642775,0.1,127.39,127.3,20.0]
[1720138642976,0.1,127.39,127.27,19.6427]
[1720138643388,7.8524,127.35,127.27,19.6427]
[1720138643597,19.7257,127.39,127.25,47.55]
[1720138643912,19.7257,127.39,127.19,31.457343]
[1720138643913,151.8203,127.37,127.19,12.7074]
[1720138644079,7.8541,127.33,127.19,12.7074]
[1720138644280,7.8524,127.35,127.28,27.4977]
[1720138644499,39.18,127.38,127.23,47.55]
[1720138644691,7.8513,127.37,127.28,47.55]
[1720138644918,0.1,127.39,127.22,15.0]
[1720138644919,0.1,127.39,127.31,55.4046]
[1720138645124,0.1,127.39,127.33,55.4035]
[1720138645282,0.1,127.39,127.3,12.9754]
[1720138645484,0.1,127.39,127.31,19.6361]
[1720138645686,0.1,127.39,127.35,47.55]
[1720138646080,0.1,127.39,127.38,55.4005]
[1720138646489,0.1,127.39,127.38,7.8505]
[1720138646807,0.1,127.39,127.34,58.8957]
[1720138647009,0.1,127.39,127.34,39.2639]
[1720138647216,0.1,127.39,127.38,7.8505]
[1720138647381,0.1,127.39,127.36,19.6282]
[1720138647715,0.1,127.39,127.31,7.8546]
[1720138647918,7.8512,127.37,127.3,32.6136]
[1720138648224,0.1,127.39,127.27,27.4999]
[1720138648225,7.8526,127.35,127.27,27.4999]
[1720138648516,0.1,127.39,127.24,19.6471]
[1720138648687,0.1,127.39,127.27,47.55]
[1720138648882,7.8561,127.29,127.23,13.2553]
[1720138649118,7.8561,127.29,127.16,47.4545]
[1720138649119,7.8569,127.28,127.19,19.6548]
[1720138649411,19.637,127.32,127.2,7.8611]
[1720138649625,100.0,127.3,127.16,47.55]
[1720138649795,100.0,127.3,127.12,32.4545]
[1720138649796,178.4644,127.28,127.12,32.4545]
[1720138650137,7.8618,127.2,127.12,7.8663]
[1720138650416,45.0,127.27,127.14,19.6622]
[1720138650583,7.861,127.21,127.14,19.6622]
[1720138650919,64.6435,127.27,127.14,67.2122]
[1720138651208,7.8611,127.21,127.14,67.2122]
[1720138651514,64.6435,127.27,127.09,52.5965]
[1720138651515,19.6482,127.24,127.11,19.6676]
[1720138651726,7.8641,127.16,127.08,27.5415]
[1720138651880,19.6526,127.21,127.08,19.6725]
[1720138652226,7.864,127.17,127.08,7.8685]
[1720138652510,45.0,127.2,127.07,19.6729]
[1720138652715,19.6578,127.18,127.05,12.0364]
[1720138652910,7.8658,127.14,127.03,19.6794]
[1720138653222,7.8678,127.1,127.03,19.6794]
[1720138653428,39.18,127.14,127.01,0.1]
[1720138653708,45.0,127.13,127.01,19.7819]
[1720138653912,7.8698,127.07,127.01,0.1]
[1720138654085,7.8691,127.08,127.01,0.1]
[1720138654290,7.8672,127.11,127.01,67.3332]
[1720138654490,39.18,127.14,127.07,7.8691]
[1720138654694,7.8636,127.17,127.09,7.8684]
[1720138654886,100.0,127.17,127.01,0.1]
[1720138655085,103.8403,127.16,127.03,7.872]
[1720138655318,7.8679,127.1,127.02,27.5545]
[1720138655506,19.6649,127.13,127.01,0.1]
[1720138655692,7.8691,127.08,127.01,0.1]
[1720138655892,7.8697,127.07,127.01,0.1]
[1720138656196,7.8683,127.1,127.01,7.9729]
[1720138656509,39.18,127.12,127.01,0.1]
[1720138656716,7.8685,127.09,127.01,7.9732]
[1720138656907,39.18,127.16,127.04,47.55]
[1720138657112,54.18,127.2,127.09,7.8682]
[1720138657113,58.8355,127.2,127.09,7.8682]
[1720138657302,158.8355,127.2,127.06,7.8699]
[1720138657613,100.0,127.16,127.01,0.1]
[1720138657815,7.8704,127.06,127.01,0.1]
[1720138657996,7.8697,127.07,127.01,0.1]
[1720138658196,7.8683,127.1,127.02,7.8726]
[1720138658396,39.18,127.14,127.02,7.8721]
[1720138658397,70.707993,127.14,127.02,7.8721]
[1720138658602,39.18,127.14,127.03,7.872]
[1720138658803,119.6652,127.13,127.01,0.1]
[1720138659008,100.0,127.13,127.01,0.1]
[1720138659213,39.18,127.1,127.01,0.1]
[1720138659392,7.8716,127.04,127.01,0.1]
[1720138659713,19.6723,127.09,127.01,0.1]
[1720138659943,45.0,127.08,127.01,0.1]
[1720138660220,39.18,127.1,127.01,0.1]
[1720138660431,31.5222,127.11,127.01,0.1]
[1720138660586,39.18,127.14,127.01,67.3323]
[1720138660899,19.6657,127.13,127.01,0.1]
[1720138661105,7.8697,127.07,127.01,0.1]
[1720138661319,100.0,127.1,127.01,0.1]
[1720138661493,19.6749,127.07,127.01,0.1]
[1720138661693,7.8727,127.02,127.01,0.1]
[1720138661912,7.8727,127.03,127.01,0.1]
[1720138662111,7.8727,127.02,127.01,0.1]
[1720138662314,27.5546,127.02,127.01,0.1]
[1720138662521,72.5546,127.02,127.01,0.0001]
[1720138662701,172.5546,127.02,127.01,0.0001]
[1720138662906,172.5546,127.02,126.91,0.1]
[1720138662907,7.876,126.97,126.91,0.1]
[1720138663212,39.18,127.01,126.91,0.1]
[1720138663418,12.6495,127.04,126.92,7.8784]
[1720138663590,7.877,126.96,126.91,0.1]
[1720138663794,184.361,127.03,126.91,0.1]
[1720138663795,7.8759,126.97,126.91,0.1]
[1720138664222,39.18,127.01,126.91,0.1]
[1720138664423,12.6495,127.04,126.93,19.6952]
[1720138664602,39.18,127.05,126.93,19.6952]
[1720138664805,39.18,127.09,126.91,0.1]
[1720138665024,13.192,127.1,126.99,19.6854]
[1720138665223,19.6686,127.11,126.99,19.6854]
[1720138665413,31.1227,127.12,126.93,86.9416]
[1720138665620,44.666714,127.15,127.02,19.6812]
[1720138665822,7.867,127.12,127.04,7.871]
[1720138665997,13.1434,127.15,127.06,7.87]
[1720138666199,7.8648,127.15,127.06,19.6748]
[1720138666411,31.019849,127.17,127.04,39.3576]
[1720138666728,19.6593,127.17,126.99,30.016]
[1720138666928,7.868,127.1,127.02,19.6815]
[1720138667129,131.515735,127.18,127.02,19.6815]
[1720138667304,131.515735,127.18,126.99,30.016]
[1720138667305,19.6606,127.16,127.05,7.8705]
[1720138667500,7.8658,127.14,127.07,7.8696]
[1720138667832,7.8653,127.14,127.06,19.6748]
[1720138668400,51.170688,127.19,127.07,7.8695]
[1720138668605,7.8648,127.15,127.07,7.8695]
[1720138668920,7.8621,127.2,127.12,7.8661]
[1720138669126,39.18,127.24,127.12,19.6652]
[1720138669427,100.0,127.23,127.09,27.5382]
[1720138669629,19.6535,127.21,127.07,13.3033]
[1720138669929,7.8634,127.18,127.1,7.8678]
[1720138670238,51.163103,127.22,127.1,19.668]
[1720138670532,19.6506,127.23,127.1,7.8678]
[1720138670829,7.8647,127.15,127.07,13.3033]
[1720138671119,100.0,127.22,127.07,13.3033]
[1720138671329,7.8691,127.08,127.01,12.6943]
[1720138671532,19.657,127.19,127.05,19.6761]
[1720138671708,19.657,127.19,127.09,7.8679]
[1720138671907,39.18,127.2,127.1,7.8675]
[1720138672105,100.0,127.22,127.03,62.55]
[1720138672106,30.0436,127.25,127.03,15.0]
[1720138672469,7.8629,127.18,127.11,7.8668]
[1720138672604,7.8629,127.18,127.1,19.6692]
[1720138672802,39.2953,127.25,127.12,12.4223]
[1720138673002,31.502268,127.24,127.22,7.8602]
[1720138673308,0.1,127.29,127.17,39.3154]
[1720138673615,0.1,127.29,127.23,19.6488]
[1720138673811,0.1,127.29,127.23,27.5083]
[1720138674015,7.8574,127.27,127.2,19.6532]
[1720138674314,7.8569,127.28,127.2,27.5146]
[1720138674523,7.8574,127.27,127.2,27.5146]
[1720138674917,7.8567,127.28,127.2,27.5146]